Cogmind - Beta 9.1 @@@ ROGUE MODE // 2019.11.01 @ 12:49:00 Player: MrPainting Result: Destroyed by as-07980 with Assembled Heavy Rifle Performance ------------- Evolutions (0) 0 Regions Visited (2) 400 Robots Destroyed (12) 60 Value Destroyed (263) 263 Prototype IDs (0) 0 Alien Tech Used (0) 0 Bonus (0) 0 TOTAL SCORE: 723 Bonus ------- None Cogmind --------- Core Integrity 0/250 Matter 27/300 Energy 99/100 System Corruption 6% Temperature Cool (0) Location -10/Mines Parts ------- Power (1) Propulsion (2) Utility (2) Weapon (2) Inventory (4) Structural Scanner Improved Light Cannon Improved Light Cannon Peak State ------------ Power Improved Ion Engine Propulsion Light Treads Light Treads Utility Small Storage Unit Improved Signal Interpreter Weapon Improved Light Cannon Improved Light Cannon Inventory Improved Ion Engine Structural Scanner Improved Signal Interpreter EM Shotgun EM Shotgun Improved Light Cannon [Rating: 12] Favorites ----------- Power Improved Ion Engine Engine Improved Ion Engine Propulsion Light Treads Treads Light Treads Wheel Wheel Utility Improved Signal Interpreter Device Structural Scanner Storage Small Storage Unit Processor Improved Signal Interpreter Weapon Improved Light Cannon Energy Gun EM Shotgun Ballistic Gun Assault Rifle Ballistic Cannon Improved Light Cannon Build | -11 -10 -10 ------- Run | Scr Mat Min Slots Evolved . | . . . Power . | . . . Propulsion . | . . . Utility . | . . . Weapon . | . . . Parts Attached 19 | 4 13 2 Power 3 | 1 2 . Engine 3 | 1 2 . Core . | . . . Reactor . | . . . Propulsion 4 | 1 3 . Treads 3 | . 3 . Leg . | . . . Wheel 1 | 1 . . Hover . | . . . Flight . | . . . Utility 5 | 1 4 . Device 1 | . 1 . Storage 3 | 1 2 . Processor 1 | . 1 . Hackware . | . . . Protection . | . . . Artifact . | . . . Weapon 7 | 1 4 2 Energy Gun 2 | . . 2 Energy Cannon . | . . . Ballistic Gun 2 | 1 1 . Ballistic Cannon 3 | . 3 . Launcher . | . . . Special Weapon . | . . . Impact Weapon . | . . . Slashing Weapon . | . . . Piercing Weapon . | . . . Special Melee Weapon . | . . . Unidentified Prototypes . | . . . Parts Lost 6 | . . 6 Power 1 | . . 1 Propulsion 2 | . . 2 Utility 1 | . . 1 Weapon 2 | . . 2 Highest Loss Streak 6 | . . 6 Average Slot Usage (%) 87 | . 88 71 Engine 12 | . 12 10 Treads 24 | . 24 17 Device 1 | . 1 . Storage 12 | . 12 14 Processor 11 | . 12 7 Ballistic Gun 3 | . 3 . Ballistic Cannon 20 | . 20 17 Naked Turns 1 | . . 1 Heaviest Build 23 | 5 23 23 Greatest Support 40 | 3 40 40 Greatest Overweight (x) 4 | 1 . 4 Average Overweight (x) . | . . . Largest Inventory Capacity 8 | 6 8 8 Average Capacity 6 | 4 6 7 Most Carried 8 | 4 8 8 Average Carried 4 | 3 4 7 Final Capacity 8 | 4 8 4 Final Carried 8 | 4 8 3 Class Distribution -------------------- 100% | Mutant Dominant Class ---------------- Mutant | -10/Materials Mutant | -10/Mines Resources | -11 -10 -10 ----------- Run | Scr Mat Min Matter Collected 288 | 150 138 . Remotely . | . . . Salvage Created 208 | . 208 . Parts 13 | . 13 . Haulers Intercepted 1 | . 1 . Recyclers Shooed . | . . . Parts Field Recycled . | . . . Retrieved Matter . | . . . Parts Self-Destructed . | . . . Prevented . | . . . Kills | -11 -10 -10 ------- Run | Scr Mat Min Combat Hostiles Destroyed 8 | . 6 2 Melee 3 | . 1 2 Guns 2 | . 2 . Cannons 3 | . 3 . Classes Destroyed 6 | . 5 1 Hauler 1 | . 1 . Operator 1 | . 1 . Watcher 2 | . 2 . Swarmer 1 | . 1 . Grunt 5 | . 5 . Assembled 2 | . . 2 Best Kill Streak 4 | . 4 2 Combat Bots Only 2 | . 2 2 Max Kills in Single Turn 1 | . 1 1 Gunslinging . | . . . Exploded . | . . . Melee 1 | . 1 1 Uniques/NPCs Destroyed . | . . . Combat | -11 -10 -10 -------- Run | Scr Mat Min Damage Taken 1044 | . 350 694 Core 254 | . 46 208 Absorbed by Shields . | . . . Core Remaining (%) 100 | 100 . . Volleys Fired 37 | . 34 3 Largest 2 | . 2 2 Hottest 90 | . 78 90 Shots Fired 61 | . 56 5 Gun 15 | . 12 3 Cannon 46 | . 44 2 Launcher . | . . . Special . | . . . Kinetic 58 | . 56 2 Thermal . | . . . Explosive . | . . . Electromagnetic 3 | . . 3 Robot Hit Streak 8 | . 8 2 Robot Miss Streak 5 | . 5 2 Penetration Max . | . . . Secondary Targets . | . . . Shots Hit Robots 41 | . 37 4 Core Hits 17 | . 12 5 Critical Hits . | . . . Critical Kills . | . . . Critical Parts Destroyed . | . . . Melee Attacks . | . . . Impact . | . . . Slashing . | . . . Piercing . | . . . Sneak Attacks . | . . . Combat Hostiles . | . . . Follow-up Attacks . | . . . Damage Inflicted 749 | . 709 40 Guns 166 | . 136 30 Cannons 468 | . 468 . Explosions 100 | . 100 . Melee . | . . . Ramming 15 | . 5 10 Kinetic 604 | . 604 . Thermal . | . . . Explosive 100 | . 100 . Electromagnetic 30 | . . 30 Impact . | . . . Slashing . | . . . Piercing . | . . . Highest Corruption 6 | . . 6 Average Corruption 4 | . . 4 Corruption Purged . | . . . Overload Shots . | . . . Overflow Damage 65 | . 65 . Projectiles 5 | . 5 . Explosions 60 | . 60 . Melee . | . . . Knockbacks 2 | . 2 . Impact . | . . . Kinetic 2 | . 2 . Secondary . | . . . Self-Inflicted Damage 95 | . 95 . Shots 1 | . 1 . Rammed 2 | . . 2 Targets Rammed 5 | . 1 4 Kicked . | . . . Crushed 3 | . 1 2 Highest Temperature 112 | . 112 61 Average Temperature 41 | . 44 22 Received Heat Transfer 213 | . 93 120 Siege Activations . | . . . Robots Corrupted . | . . . Combat Hostiles . | . . . Parts Fried . | . . . Impact Corruptions . | . . . Robots Melted . | . . . Combat Hostiles . | . . . Parts Melted . | . . . Heat Transferred . | . . . Parts Sabotaged . | . . . Parts Stolen . | . . . Parts Stripped . | . . . Power Chain Reactions . | . . . Missiles Intercepted . | . . . Alert | -11 -10 -10 ------- Run | Scr Mat Min Peak Influence 228 | . 228 20 Average Influence 95 | . 107 12 Maximum Alert Level 1 | . 1 . Low Security (%) 74 | . . . Level 1 25 | . . . Level 2 . | . . . Level 3 . | . . . Level 4 . | . . . Level 5 . | . . . High Security . | . . . Max Security . | . . . Squads Dispatched 2 | . 2 . Investigation . | . . . Extermination . | . . . Reinforcement 2 | . 2 . Assault . | . . . Garrison . | . . . Intercept . | . . . Construction Impeded . | . . . Haulers Reinforced . | . . . Stealth | -11 -10 -10 --------- Run | Scr Mat Min Distress Signals 4 | . 3 1 Communications Jammed . | . . . Distress Signals . | . . . Times Spotted 30 | . 19 11 Peak Tracking Total 10 | . 4 10 Tactical Retreats 2 | . 2 . Traps | -11 -10 -10 ------- Run | Scr Mat Min Traps Triggered . | . . . Indirectly . | . . . Trap Hack Attempts . | . . . Triggered . | . . . Disarmed . | . . . Reprogrammed . | . . . Reused . | . . . Traps Extracted . | . . . Installed . | . . . Triggered . | . . . Machines | -11 -10 -10 ---------- Run | Scr Mat Min Machines Disabled 2 | . 2 . Max in Single Turn 1 | . 1 . Machines Sabotaged . | . . . Garrisons Compromised . | . . . Overloaded Fab Kills . | . . . Fab Network Shutdowns . | . . . Hacking | -11 -10 -10 --------- Run | Scr Mat Min Machines Accessed 2 | . 2 . Terminals 2 | . 2 . Fabricators . | . . . Repair Stations . | . . . Recycling Units . | . . . Scanalyzers . | . . . Garrison Access . | . . . Total Hacks 6 | . 6 . Successful 3 | . 3 . Failed 3 | . 3 . Catastrophic . | . . . Database Lockouts . | . . . Manual 4 | . 4 . Terminals 6 | . 6 . Fabricators . | . . . Repair Stations . | . . . Recycling Units . | . . . Scanalyzers . | . . . Garrison Access . | . . . Terminal Hacks 1 | . 1 . Locate Traps 1 | . 1 . Fabricator Hacks . | . . . Repair Station Hacks . | . . . Recycling Unit Hacks . | . . . Scanalyzer . | . . . Garrison Access Hacks . | . . . Unauthorized Hacks 6 | . 6 . Terminals 2 | . 2 . Botnet 2 | . 2 . Fabricators . | . . . Repair Stations . | . . . Recycling Units . | . . . Scanalyzers . | . . . Garrison Access . | . . . Data Cores Recovered . | . . . Used . | . . . Hacking Detections 2 | . 2 . Full Trace Events . | . . . Feedback Events . | . . . Feedback Blocked . | . . . Robot Schematics Acquired . | . . . Robots Built . | . . . Matter . | . . . Time . | . . . Total Robot Build Rating . | . . . Part Schematics Acquired . | . . . Parts Built . | . . . Matter . | . . . Time . | . . . Total Part Build Rating . | . . . Parts Repaired . | . . . Time . | . . . Parts Recycled . | . . . Recycled Matter . | . . . Retrieved Matter . | . . . Retrieved Components . | . . . Parts Scanalyzed . | . . . Part Schematics Acquired . | . . . Parts Damaged . | . . . Bothacking | -11 -10 -10 ------------ Run | Scr Mat Min Used RIF Installer . | . . . Robots Hacked . | . . . Non-combat . | . . . Combat . | . . . Robot Hacks Applied . | . . . Relay Couplers Released . | . . . Robots Rewired . | . . . Allies Hacked . | . . . Hacks Repelled . | . . . Allies | -11 -10 -10 -------- Run | Scr Mat Min Total Allies . | . . . Largest Group . | . . . Highest-Rated Group . | . . . Highest-Rated Ally . | . . . Total Orders . | . . . Ally Attacks . | . . . Total Damage . | . . . Kills . | . . . Allies Corrupted . | . . . Allies Melted . | . . . Intel | -11 -10 -10 ------- Run | Scr Mat Min Robot Analysis Total . | . . . Derelict Logs Recovered . | . . . Drone Launches . | . . . Drone Recoveries . | . . . Exploration | -11 -10 -10 ------------- Run | Scr Mat Min Turns Passed 621 | 37 545 39 Spaces Moved 394 | 44 337 13 Core 153 | 44 106 3 Treads 241 | . 231 10 Legs . | . . . Wheels . | . . . Hover . | . . . Flight . | . . . Fastest Speed 50 | 50 50 50 Average Speed 118 | 53 125 157 Slowest Speed 250 | 100 160 250 Overloaded Moves . | . . . Propulsion Burnouts . | . . . Robots Hopped . | . . . Cave-ins Triggered . | . . . Exploration Rate (%) 19 | 4 43 11 Regions Visited 2 Branch Regions 1 Pre-discovered Areas . | . . . Known Exits Taken 1 | . 1 . Unknown Exits Taken 1 | 1 . . Scrap Searched . | . . . Spaces Dug . | . . . Terrain Destroyed 9 | . 8 1 Melee . | . . . Projectile 5 | . 4 1 AOE 4 | . 4 . Actions | -11 -10 -10 --------- Run | Scr Mat Min Total 487 | 58 405 24 Wait 2 | . 2 . Move 392 | 43 336 13 Hop . | . . . Pick Up 18 | 6 12 . Fast Attach 3 | 2 1 . Attach 9 | 2 7 . Detach 3 | 2 1 . Swap 7 | . 5 2 Drop 11 | 3 6 2 Fire 37 | . 34 3 Melee . | . . . Ram . | . . . Kick . | . . . Crush 5 | . 1 4 Escape Stasis . | . . . Rewire . | . . . Trap . | . . . Miscellaneous . | . . . Route ------- -11/Scrapyard -10/Materials (discovered 3 exits: [*Mat x2] / *Min) -10/Mines History --------- Turn | Location | Event 10 | -11/Scrapyard | Discovered new exit (range 16) 38 | -11/Scrapyard | Entered Materials 75 | -10/Materials | Discovered new exit (range 15) 253 | -10/Materials | Discovered new exit (range 16) 328 | -10/Materials | Build established: Mutant 566 | -10/Materials | Discovered new exit (range 11) 581 | -10/Materials | Identified exit to Mines 583 | -10/Materials | Entered Mines 584 | -10/Mines | Assembled infested the area 619 | -10/Mines | Core integrity fell below 50% 622 | -10/Mines | Core integrity fell below 20% 622 | -10/Mines | Destroyed by as-07980 with Assembled Heavy Rifle Last Messages --------------- 00581_ EXIT=IDENTIFIED: MINES LOCATION=MINES GOAL=ESCAPE 00584_ ALERT: Infestation in the mines, dispatching Demolisher response squad. 00602_ Crushed as-72160. 00602_ as-72160 destroyed. 00604_ Crushed as-74599. 00604_ as-74599 destroyed. 00606_ Slammed into as-18730. 00606_ Lgt. Treads destroyed. 00607_ Slammed into as-18730. 00609_ Imp. Signal Interpreter destroyed. 00609_ System corrupted by crushing effect (+1). 00612_ Lgt. Treads destroyed. 00612_ System corrupted by crushing effect (+5). 00613_ EM Shotgun destroyed. 00618_ Imp. Ion Engine destroyed. 00621_ Dropped Med. Storage Unit. 00622_ Dropped Imp. Light Cannon. Map ----- +----------------------------------------------------+ | ??????????????????????????????????????? | | ??????????????????????????????????????? | | ??????????????????????????????????????? | | ??????????????????????????????????????? | | ???????????????????????????????####???? | | ?????????????????????????###### #???? | | ????????????????????????## ???? | | ????????????????????????# ????? | | ????????????????????????? ?????? | | ????????????????????????? ???????? | | ????????????????????????## #????????? | | ????????????????###????## #?????????? | | ???????????????## #??## ##????????? | | ???????????????# ### ###??????? | | ???????????????# ##?????? | | ???????????????# #?????? | | ???????????????# ### ! #?????? | | ???????????????## ####?## ##?????? | | ????????????????###??????##= ##??????? | | ??????????????????????????## #???????? | | ??????????????????????????## ##??????? | | ??????????????????????##### ####???? | | ?????????????????????##| ##??? | | ?????????????????????# a a #??? | | ?????????????????##### aaa #?? | | ????????????# a ]@!a ! #?? | | ????????????#a !###### ;#? | | ????????????# ###### ##?????# ###? | | ?????????????????????####????????###??? | | ??????????????????????????????????????? | | ??????????????????????????????????????? | | ??????????????????????????????????????? | | ??????????????????????????????????????? | | ??????????????????????????????????????? | | ??????????????????????????????????????? | | ??????????????????????????????????????? | | ??????????????????????????????????????? | | ??????????????????????????????????????? | | ??????????????????????????????????????? | | ??????????????????????????????????????? | | ??????????????????????????????????????? | | ??????????????????????????????????????? | | ??????????????????????????????????????? | | ??????????????????????????????????????? | | ??????????????????????????????????????? | | ??????????????????????????????????????? | | ??????????????????????????????????????? | | ??????????????????????????????????????? | | ??????????????????????????????????????? | | ??????????????????????????????????????? | +----------------------------------------------------+ Best States ------------- Heat Dissipation 25 Energy Generation 12 Energy Capacity 265 Matter Stores 210 Matter Capacity 300 Sight Range 16 Terrain Scan Density 10 Evasion (%) 50 Recoil Reduction 2 Item Schematics ----------------- None Robot Schematics ------------------ None Fabricated ------------ Nothing Alien Tech Used ----------------- None Achievements -------------- None Challenges ------------ None Game ------ Seed BombUltimateArmor Manual? 0 Play Time 00:09:48 Cumulative 82.3 hours Start 2019.11.01 @ 12:40:15 End 2019.11.01 @ 12:49:00 Sessions 1 Manual Loads 0 Difficulty Rogue Special Mode None Game No. 129 Rogue 129 Adventurer 0 Explorer 0 Win Type - Total 0 Types 0/0/0/0/0/0/0 Lore% 30 Gallery% 43 Achievement% 31 Wizard Run 0 Options --------- ASCII 0 Keyboard 0 Movement Mouse Keybinds 0 Fullscreen 1 Font 18/SmallcapsGlow Map View 76x50 Tactical HUD 1 Map Filters NONE Filters NONE Steam 1 RUN: 5c07d163-b917-4035-adb5-3f492c68a802